fUST/lending_fUST_20251014
["ID","MTS","AMOUNT","RATE_DAILY","PERIOD"]
[391237081,1760424641436,-28664.73917222,0.000248,3]
[391237082,1760424641446,-163959.46828572,0.000249,2]
[391237116,1760424645361,-3e-08,0.0002489,10]
[391237118,1760424645373,-2245.85259758,0.0002489,10]
[391237120,1760424645385,-4955.51740239,0.0002489,10]
[391237122,1760424645394,-17390.48259761,0.000249,2]
[391237124,1760424645408,-23046.26904338,0.000249,2]
[391237151,1760424645852,-1216.13859633,0.000249,2]
[391237153,1760424645863,-7980.0,0.000249,2]
[391237155,1760424645875,-535.20083351,0.000249,2]
[391237171,1760424646087,-434.40454342,0.000249,2]
[391237176,1760424646470,-2701.12803373,0.000249,2]
[391237178,1760424646481,-1896.01578638,0.000249,2]
[391237179,1760424646493,-5312.57475037,0.000249,2]
[391237180,1760424646504,-11028.09844254,0.000249,2]
[391237207,1760424650295,500.0,0.00019178,2]
[391237208,1760424662618,500.0,0.00019103,2]
[391237209,1760424662707,500.0,0.00019178,2]
[391237210,1760424662793,326.52535265,0.00019103,2]
[391237211,1760424662880,500.0,0.00019103,2]
[391237212,1760424662967,344.43312721,0.00019103,2]
[391237213,1760424663052,500.0,0.00019178,2]
[391237214,1760424663144,500.0,0.00019103,2]
[391237215,1760424663229,345.69557107,0.00019103,2]
[391237216,1760424663313,500.0,0.00019103,2]
[391237217,1760424663407,500.0,0.00019178,2]
[391237218,1760424663493,223.05130918,0.00019103,2]
[391237219,1760424663581,500.0,0.00019103,2]
[391237220,1760424663671,500.0,0.00019178,2]
[391237221,1760424663752,500.0,0.00019103,2]
[391237222,1760424663832,500.0,0.00019103,2]
[391237223,1760424663914,500.0,0.00019103,2]
[391237224,1760424664000,500.0,0.00019103,2]
[391237225,1760424664080,500.0,0.00019103,2]
[391237226,1760424664158,500.0,0.00019178,2]
[391237227,1760424664246,500.0,0.00019103,2]
[391237228,1760424664330,260.30463989,0.00019103,2]
[391237229,1760424664415,239.69536011,0.00019103,2]
[391237230,1760424664503,500.0,0.00019178,2]
[391237231,1760424664584,500.0,0.00019103,2]
[391237232,1760424664667,500.0,0.00019103,2]
[391237233,1760424664748,500.0,0.00019103,2]
[391237234,1760424664823,639.54974205,0.00019103,2]
[391237235,1760424664904,500.0,0.00019178,2]
[391237236,1760424665003,500.0,0.00019103,2]
[391237237,1760424665086,500.0,0.00019178,2]
[391237238,1760424665159,500.0,0.00019103,2]
[391237239,1760424665235,500.0,0.00019178,2]
[391237240,1760424665318,500.0,0.00019178,2]
[391237241,1760424665401,500.0,0.00019178,2]
[391237242,1760424665474,500.0,0.00019178,2]
[391237243,1760424665545,500.0,0.00019178,2]
[391237244,1760424665622,365.22130294,0.00019178,2]
[391237245,1760424665706,500.0,0.00019178,2]
[391237246,1760424665780,500.0,0.00019178,2]
[391237247,1760424667287,500.0,0.00019103,2]
[391237248,1760424673128,500.0,0.00019178,2]
[391237249,1760424673206,500.0,0.00019178,2]
[391237250,1760424673286,500.0,0.00019178,2]
[391237251,1760424673359,500.0,0.00019178,2]
[391237252,1760424673438,500.0,0.00019178,2]
[391237253,1760424673506,500.0,0.00019178,2]
[391237254,1760424673575,500.0,0.00019178,2]
[391237255,1760424673653,500.0,0.00019178,2]
[391237256,1760424673724,500.0,0.00019178,2]
[391237257,1760424673798,500.0,0.00019178,2]
[391237258,1760424673875,500.0,0.00019178,2]
[391237259,1760424673951,500.0,0.00019178,2]
[391237260,1760424674034,500.0,0.00019178,2]
[391237261,1760424674119,198.02,0.00019178,2]
[391237262,1760424674196,500.0,0.00019178,2]
[391237263,1760424677724,499.99999999,0.00019103,2]
[391237265,1760424705722,500.0,0.00019178,2]
[391237266,1760424705987,500.0,0.00019178,2]
[391237267,1760424706260,605.35527296,0.00019178,2]
[391237268,1760424707139,196.63472705,0.00019005,2]
[391237269,1760424707229,10000.01,0.00019005,2]
[391237270,1760424707314,10000.01,0.00019005,2]
[391237271,1760424707389,10000.01,0.00019005,2]
[391237272,1760424707461,10000.01,0.00019005,2]
[391237273,1760424707534,10000.01,0.00019005,2]
[391237274,1760424707606,10000.01,0.00019005,2]
[391237275,1760424707681,10000.01,0.00019005,2]
[391237276,1760424707766,10000.01,0.00019005,2]
[391237277,1760424707843,10000.01,0.00019005,2]
[391237278,1760424707923,10000.01,0.00019005,2]
[391237279,1760424707996,10000.01,0.00019005,2]
[391237280,1760424708067,10000.01,0.00019005,2]
[391237281,1760424751804,242.20857247,0.00019004,2]
[391237282,1760424753602,626.61663801,0.00019004,2]
[391237283,1760424753684,524.7834788,0.00019004,2]
[391237284,1760424754319,-677.86761542,0.00019005,2]
[391237285,1760424847467,2387.7007831,0.00019005,2]
[391237286,1760424861146,-5779.82894112,0.00019005,2]
[391237287,1760424861401,-10000.01,0.00019005,2]
[391237288,1760424861611,-10000.01,0.00019005,2]
[391237289,1760424862450,-10000.01,0.00019005,2]
[391237290,1760424862675,-10000.01,0.00019005,2]
[391237291,1760424862901,-10000.01,0.00019005,2]
[391237292,1760424863116,-10000.01,0.00019005,2]
[391237293,1760424863396,-10000.01,0.00019005,2]
[391237294,1760424863637,-10000.01,0.00019005,2]
[391237295,1760424863980,-10000.01,0.00019005,2]
[391237296,1760424866584,-10000.01,0.00019005,2]
[391237297,1760424866794,-10000.01,0.00019005,2]
[391237298,1760424867055,-10000.01,0.00019005,2]
[391237299,1760424877375,514.55351238,0.00018815,2]
[391237300,1760424906717,300.0,0.00019004,2]
[391237301,1760424963041,247.0,0.00019004,2]
[391237303,1760425054520,-301.98336281,0.00019005,2]
[391237308,1760425315348,-160.0,0.00019005,2]
[391237309,1760425315603,-8618.45648762,0.00019005,2]
[391237310,1760425315730,-10000.01,0.00019005,2]
[391237311,1760425315899,-10000.01,0.00019005,2]
[391237312,1760425316385,-10000.01,0.00019005,2]
[391237313,1760425316634,-10000.01,0.00019005,2]
[391237314,1760425316921,-10000.01,0.00019005,2]
[391237315,1760425317198,-10000.01,0.00019005,2]
[391237316,1760425317472,-10000.01,0.00019005,2]
[391237317,1760425317700,-10000.01,0.00019005,2]
[391237318,1760425337424,-10000.01,0.00019005,2]
[391237319,1760425337695,-10000.01,0.00019005,2]
[391237320,1760425337935,-10000.01,0.00019005,2]
[391237321,1760425338211,-4424.87886598,0.00019005,2]
[391237322,1760425338300,-252.69715291,0.00019005,2]
[391237323,1760425338370,-200.0,0.00019005,2]
[391237324,1760425338647,-2084.09,0.00019104,2]
[391237325,1760425338738,-2084.09,0.00019104,2]
[391237326,1760425338998,-2084.09,0.00019104,2]
[391237327,1760425339086,-2084.09,0.00019104,2]
[391237328,1760425339335,-2084.09,0.00019104,2]
[391237329,1760425339402,-2084.09,0.00019104,2]
[391237330,1760425339710,-2084.09,0.00019104,2]
[391237331,1760425339800,-2084.09,0.00019104,2]
[391237332,1760425340093,-2084.09,0.00019104,2]
[391237333,1760425340176,-2084.09,0.00019104,2]
[391237334,1760425340344,-2084.09,0.00019104,2]
[391237335,1760425340421,-2084.09,0.00019104,2]
[391237336,1760425340724,-647.18796222,0.00019104,2]
[391237337,1760425340789,-1436.90203778,0.00019104,2]
[391237338,1760425340798,-647.18796222,0.00019104,2]
[391237339,1760425340862,-1436.90203778,0.00019104,2]
[391237340,1760425340871,-226.74796222,0.00019104,2]
[391237341,1760425340939,-1857.34203778,0.00019104,2]
[391237342,1760425340947,-226.74796222,0.00019104,2]
[391237343,1760425341012,-1857.34203778,0.00019104,2]
[391237344,1760425341021,-226.74796222,0.00019104,2]
[391237345,1760425341088,-1663.65,0.00019104,2]
[391237346,1760425341729,-193.69203778,0.00019104,2]
[391237347,1760425341808,-2084.09,0.00019104,2]
[391237348,1760425341886,-2084.09,0.00019104,2]
[391237349,1760425341977,-173.91,0.00019168,3]
[391237350,1760425342062,-406.68592444,0.00019168,3]
[391237351,1760425342437,-115.07407556,0.00019168,3]
[391237352,1760425342517,-2084.09,0.00019177,2]
[391237353,1760425342596,-2084.09,0.00019177,2]
[391237354,1760425342768,-2084.09,0.00019177,2]
[391237355,1760425342853,-2084.09,0.00019177,2]
[391237356,1760425343174,-2084.19105272,0.00019177,2]
[391237357,1760425343259,-500.0,0.00019178,2]
[391237358,1760425343342,-500.0,0.00019178,2]
[391237359,1760425343424,-502.51814734,0.00019178,2]
[391237360,1760425343501,-500.0,0.00019178,2]
[391237361,1760425343585,-500.0,0.00019178,2]
[391237362,1760425343669,-326.59159988,0.00019178,2]
[391237363,1760425344149,-173.40840012,0.00019178,2]
[391237364,1760425344158,-209.7077771,0.00019178,2]
[391237365,1760425344244,-290.2922229,0.00019178,2]
[391237366,1760425344254,-209.7077771,0.00019178,2]
[391237367,1760425344329,-290.2922229,0.00019178,2]
[391237368,1760425344338,-209.7077771,0.00019178,2]
[391237369,1760425344415,-380.6322229,0.00019178,2]
[391237370,1760425344425,-121.88592444,0.00019178,2]
[391237371,1760425344498,-378.11407556,0.00019178,2]
[391237372,1760425344507,-121.88592444,0.00019178,2]
[391237373,1760425344581,-382.57707138,0.00019178,2]
[391237374,1760425344591,-117.42292862,0.00019178,2]
[391237375,1760425344663,-383.85182732,0.00019178,2]
[391237376,1760425344675,-116.14817268,0.00019178,2]
[391237377,1760425351457,-383.85182732,0.00019178,2]
[391237378,1760425351645,-500.0,0.00019178,2]
[391237379,1760425351726,-500.0,0.00019178,2]
[391237380,1760425351815,-183.84,0.00019178,2]
[391237381,1760425351897,-500.0,0.00019178,2]
[391237382,1760425351988,-500.0,0.00019178,2]
[391237383,1760425352072,-500.0,0.00019178,2]
[391237384,1760425352156,-500.0,0.00019178,2]
[391237385,1760425352249,-500.0,0.00019178,2]
[391237386,1760425352329,-500.0,0.00019178,2]
[391237387,1760425352401,-364.62634536,0.00019178,2]
[391237388,1760425352654,-135.37365464,0.00019178,2]
[391237389,1760425352744,-500.0,0.00019178,2]
[391237390,1760425352819,-569.21131732,0.00019178,2]
[391237391,1760425352894,-500.0,0.00019178,2]
[391237392,1760425352977,-500.0,0.00019178,2]
[391237393,1760425353061,-500.0,0.00019178,2]
[391237394,1760425353139,-183.52381922,0.00019178,2]
[391237395,1760425353217,-500.0,0.00019178,2]
[391237396,1760425353293,-500.0,0.00019178,2]
[391237397,1760425353364,-500.0,0.00019178,2]
[391237398,1760425353435,-500.0,0.00019178,2]
[391237399,1760425353713,-500.0,0.00019178,2]
[391237400,1760425353794,-500.0,0.00019178,2]
[391237401,1760425353874,-500.0,0.00019178,2]
[391237402,1760425353955,-500.0,0.00019178,2]
[391237403,1760425354035,-500.0,0.00019178,2]
[391237404,1760425354113,-500.0,0.00019178,2]
[391237405,1760425354197,-500.0,0.00019178,2]
[391237406,1760425354281,-500.0,0.00019178,2]
[391237407,1760425354361,-500.0,0.00019178,2]
[391237408,1760425354438,-500.0,0.00019178,2]
[391237409,1760425354759,-500.0,0.00019178,2]
[391237410,1760425354846,-171.62370022,0.00019178,2]
[391237411,1760425354936,-500.0,0.00019178,2]
[391237412,1760425355027,-500.0,0.00019178,2]
[391237413,1760425355110,-500.0,0.00019178,2]
[391237414,1760425355194,-500.0,0.00019178,2]
[391237415,1760425355278,-500.0,0.00019178,2]
[391237416,1760425355367,-500.0,0.00019178,2]
[391237417,1760425355452,-500.0,0.00019178,2]
[391237418,1760425355537,-253.67330666,0.00019178,2]
[391237419,1760425355624,-500.0,0.00019178,2]
[391237420,1760425355894,-426.44,0.00019178,2]
[391237421,1760425355977,-500.0,0.00019178,2]
[391237422,1760425356061,-500.0,0.00019178,2]
[391237423,1760425356135,-500.0,0.00019178,2]
[391237424,1760425356218,-500.0,0.00019178,2]
[391237425,1760425356297,-500.0,0.00019178,2]
[391237426,1760425356377,-500.0,0.00019178,2]
[391237427,1760425356455,-500.0,0.00019178,2]
[391237428,1760425356535,-500.0,0.00019178,2]
[391237429,1760425356618,-500.0,0.00019178,2]
[391237430,1760425356808,-407.44524737,0.00019004,2]
[391237431,1760425356892,-250.0,0.00019004,2]
[391237432,1760425356979,-500.0,0.00019178,2]
[391237433,1760425357064,-500.0,0.00019178,2]
[391237434,1760425357148,-500.0,0.00019178,2]
[391237435,1760425357233,-500.0,0.00019178,2]
[391237436,1760425357318,-500.0,0.00019178,2]
[391237437,1760425357412,-500.0,0.00019178,2]
[391237438,1760425357490,-500.0,0.00019178,2]
[391237439,1760425357570,-500.0,0.00019178,2]
[391237440,1760425357644,-185.11950526,0.00019178,2]
[391237441,1760425357972,-314.88049474,0.00019178,2]
[391237442,1760425358046,-502.24201314,0.00019178,2]
[391237443,1760425358119,-500.0,0.00019178,2]
[391237444,1760425358198,-500.0,0.00019178,2]
[391237445,1760425358275,-500.0,0.00019178,2]
[391237446,1760425358348,-500.0,0.00019178,2]
[391237447,1760425358420,-405.91342606,0.00019178,2]
[391237448,1760425358506,-500.0,0.00019178,2]
[391237449,1760425358684,-500.0,0.00019178,2]
[391237450,1760425358769,-500.0,0.00019178,2]
[391237451,1760425358853,-53.93813212,0.00019178,2]
[391237452,1760425361240,-446.06186788,0.00019178,2]
[391237453,1760425361318,-500.0,0.00019178,2]
[391237454,1760425361389,-352.82164408,0.00019178,2]
[391237455,1760425361460,-500.0,0.00019178,2]
[391237456,1760425361528,-500.0,0.00019178,2]
[391237457,1760425361606,-410.29988125,0.00019178,2]
[391237458,1760425365291,-10000.01,0.00019178,2]
[391237459,1760425365354,-10000.01,0.00019178,2]
[391237460,1760425365430,-10000.01,0.00019178,2]
[391237461,1760425365512,-10000.01,0.00019178,2]
[391237462,1760425365617,-0.05,0.00019178,2]
[391237463,1760425365697,-9999.91,0.00019178,2]
[391237464,1760425367886,-300.0,0.00019384,2]
[391237465,1760425367969,-300.0,0.00019384,2]
[391237466,1760425368053,-300.0,0.00019384,2]
[391237467,1760425368129,-300.0,0.00019384,2]
[391237468,1760425368206,-300.0,0.00019384,2]
[391237469,1760425368281,-300.0,0.00019384,2]
[391237470,1760425368355,-300.0,0.00019384,2]
[391237471,1760425368427,-300.0,0.00019384,2]
[391237472,1760425368502,-300.0,0.00019384,2]
[391237473,1760425368582,-300.0,0.00019384,2]
[391237474,1760425368661,-300.0,0.00019384,2]
[391237475,1760425368736,-300.0,0.00019384,2]
[391237476,1760425368814,-300.0,0.00019384,2]
[391237477,1760425368889,-300.0,0.00019384,2]
[391237478,1760425368965,-300.0,0.00019384,2]
[391237479,1760425369052,-400.01,0.00019384,2]
[391237480,1760425370143,-199.99,0.00019384,2]
[391237481,1760425372809,10000.01,0.00018905,2]
[391237482,1760425372882,10000.01,0.00018905,2]
[391237483,1760425372959,10000.01,0.00018905,2]
[391237484,1760425373042,10000.01,0.00018905,2]
[391237485,1760425375667,-10000.01,0.00018905,2]
[391237486,1760425375941,-10000.01,0.00018905,2]
[391237487,1760425378644,-10000.01,0.00018905,2]
[391237488,1760425378872,-10000.01,0.00018905,2]
[391237489,1760425379091,-10000.01,0.00018905,2]
[391237490,1760425379363,-10000.01,0.00018905,2]
[391237491,1760425379655,-10000.01,0.00018905,2]
[391237492,1760425379904,-10000.01,0.00018905,2]
[391237493,1760425380143,-10000.01,0.00018905,2]
[391237494,1760425380420,-10000.01,0.00018905,2]
[391237496,1760425382986,-300.0,0.00018904,2]
[391237497,1760425395937,1171.26697778,0.00018905,2]
[391237498,1760425398459,374.46,0.00018895,3]
[391237499,1760425406992,-8454.28302222,0.00018905,2]
[391237500,1760425407192,-10000.01,0.00018905,2]
[391237501,1760425407427,-10000.01,0.00018905,2]
[391237502,1760425407682,-10000.01,0.00018905,2]
[391237503,1760425407918,-10000.01,0.00018905,2]
[391237504,1760425408161,-10000.01,0.00018905,2]
[391237505,1760425408431,-10000.01,0.00018905,2]
[391237506,1760425408695,-10000.01,0.00018905,2]
[391237507,1760425410774,-10000.01,0.00018905,2]
[391237508,1760425433091,-4957.76553751,0.00018716,2]
[391237509,1760425442264,84.47892498,0.00018905,2]
[391237510,1760425442331,4915.52107502,0.00018905,2]
[391237511,1760425442510,300.0,0.00018904,2]
[391237512,1760425444408,-307.08769498,0.00018905,2]
[391237513,1760425465867,1060.93955803,0.00018905,2]
[391237514,1760425472392,169.54600073,0.00018904,2]
[391237515,1760425473551,500.0,0.00018904,2]
[391237516,1760425473643,500.0,0.00018904,2]
[391237517,1760425473722,500.0,0.00018904,2]
[391237518,1760425473798,500.0,0.00018904,2]
[391237519,1760425473881,500.0,0.00018904,2]
[391237520,1760425473968,500.0,0.00018904,2]
[391237521,1760425474047,500.0,0.00018904,2]
[391237522,1760425474121,54.00336622,0.00018904,2]
[391237523,1760425474184,520.99663378,0.00018904,2]
[391237524,1760425474249,544.86443346,0.00018904,2]
[391237525,1760425474312,500.0,0.00018904,2]
[391237526,1760425474399,500.0,0.00018904,2]
[391237527,1760425474482,516.99862519,0.00018904,2]
[391237528,1760425480388,-7363.14694135,0.00018905,2]
[391237529,1760425480626,-10000.01,0.00018905,2]
[391237530,1760425480818,-10000.01,0.00018905,2]
[391237531,1760425481048,-10000.01,0.00018905,2]
[391237532,1760425481263,-10000.01,0.00018905,2]
[391237533,1760425481520,-10000.01,0.00018905,2]
[391237534,1760425481758,-10000.01,0.00018905,2]
[391237535,1760425482026,-10000.01,0.00018905,2]
[391237536,1760425482298,-10000.01,0.00018905,2]
[391237537,1760425484293,-10000.01,0.00018905,2]
[391237538,1760425486043,-10000.01,0.00018905,2]
[391237539,1760425486288,-10000.01,0.00018905,2]
[391237540,1760425486502,-10000.01,0.00018905,2]
[391237541,1760425486870,-10000.01,0.00018905,2]
[391237542,1760425487172,-3875.13234145,0.00018905,2]
[391237543,1760425487314,-2249.7453171,0.00019178,2]
[391237544,1760425487432,-1392.8746829,0.00019178,2]
[391237545,1760425487507,-3571.6406342,0.00019178,2]
[391237546,1760425487771,-70.9793658,0.00019178,2]
[391237547,1760425487861,-3642.62,0.00019178,2]
[391237548,1760425488019,-3642.62,0.00019178,2]
[391237549,1760425488184,-2714.77,0.00019178,2]
[391237550,1760425488313,-927.85,0.00019178,2]
[391237551,1760425488322,-1786.92,0.00019178,2]
[391237552,1760425488394,-1855.7,0.00019178,2]
[391237553,1760425488464,-2645.99,0.00019178,2]
[391237554,1760425488589,-996.63,0.00019178,2]
[391237555,1760425490060,-3642.62,0.00019178,2]
[391237556,1760425490206,-2714.77,0.00019178,2]
[391237557,1760425490283,-927.85,0.00019178,2]
[391237558,1760425490356,-3642.62,0.00019178,2]
[391237559,1760425490531,-859.07,0.00019178,2]
[391237560,1760425490610,-2783.55,0.00019178,2]
[391237561,1760425490681,-790.29,0.00019178,2]
[391237562,1760425490802,-2852.33,0.00019178,2]
[391237563,1760425493159,-3642.62,0.00019178,2]
[391237564,1760425493290,-2714.77,0.00019178,2]
[391237565,1760425493368,-927.85,0.00019178,2]
[391237566,1760425493442,-3642.62,0.00019178,2]
[391237567,1760425493589,1459.10593081,0.00018,7]
[391237568,1760425493656,-859.07,0.00019178,2]
[391237569,1760425493737,-2783.55,0.00019178,2]
[391237570,1760425493816,-504.89653521,0.00019178,2]
[391237571,1760425494041,-3642.62,0.00019178,2]
[391237572,1760425494201,-3423.11692958,0.00019178,2]
[391237573,1760425494277,-219.50307042,0.00019178,2]
[391237574,1760425494349,-3642.62,0.00019178,2]
[391237575,1760425494595,-3642.62,0.00019178,2]
[391237576,1760425494749,-1347.91385916,0.00019178,2]
[391237577,1760425494831,-2294.70614084,0.00019178,2]
[391237578,1760425494912,-1767.97771832,0.00019178,2]
[391237579,1760425495079,-1874.64228168,0.00019178,2]
[391237580,1760425495090,-420.06385916,0.00019178,2]
[391237581,1760425495161,-2294.70614084,0.00019178,2]
[391237582,1760425495221,-927.85,0.00019178,2]
[391237583,1760425495230,-2714.77,0.00019178,2]
[391237584,1760425499230,-927.99479464,0.00019178,2]
[391237585,1760425499317,-500.0,0.00019178,2]
[391237586,1760425499400,-502.45102861,0.00019178,2]
[391237587,1760425499473,-500.0,0.00019178,2]
[391237588,1760425499548,-500.0,0.00019178,2]
[391237589,1760425499632,-500.0,0.00019178,2]
[391237590,1760425499710,-500.0,0.00019178,2]
[391237591,1760425499787,-506.4280799,0.00019178,2]
[391237592,1760425499863,-500.0,0.00019178,2]
[391237593,1760425500181,-500.0,0.00019178,2]
[391237594,1760425500278,-500.0,0.00019178,2]
[391237595,1760425500364,-500.0,0.00019178,2]
[391237596,1760425500445,-500.0,0.00019178,2]
[391237597,1760425500525,-500.0,0.00019178,2]
[391237598,1760425500605,-500.0,0.00019178,2]
[391237599,1760425500683,-500.0,0.00019178,2]
[391237600,1760425500759,-500.0,0.00019178,2]
[391237601,1760425500842,-500.0,0.00019178,2]
[391237602,1760425500921,-500.0,0.00019178,2]
[391237603,1760425502120,-126.2621937,0.00019178,2]
[391237604,1760425502194,-0.01,0.00019178,2]
[391237605,1760425502286,-373.7278063,0.00019178,2]
[391237606,1760425502374,-500.0,0.00019178,2]
[391237607,1760425502460,-500.0,0.00019178,2]
[391237608,1760425502545,-500.0,0.00019178,2]
[391237609,1760425502636,-558.02,0.00019178,2]
[391237610,1760425502718,-500.0,0.00019178,2]
[391237611,1760425502799,-500.0,0.00019178,2]
[391237612,1760425502884,-500.0,0.00019178,2]
[391237613,1760425502966,-500.0,0.00019178,2]
[391237614,1760425503053,-500.0,0.00019178,2]
[391237615,1760425504240,-136.5143874,0.00019178,2]
[391237616,1760425504338,-363.4856126,0.00019178,2]
[391237617,1760425504430,-500.0,0.00019178,2]
[391237618,1760425504528,-500.0,0.00019178,2]
[391237619,1760425504625,-500.0,0.00019178,2]
[391237620,1760425504723,-500.0,0.00019178,2]
[391237621,1760425504818,-500.0,0.00019178,2]
[391237622,1760425504917,-500.0,0.00019178,2]
[391237623,1760425505016,-500.0,0.00019178,2]
[391237624,1760425505111,-500.0,0.00019178,2]
[391237625,1760425505218,-500.0,0.00019178,2]
[391237626,1760425505326,-500.0,0.00019178,2]
[391237627,1760425505420,-500.0,0.00019178,2]
[391237628,1760425505508,-500.0,0.00019178,2]
[391237629,1760425505602,-500.0,0.00019178,2]
[391237630,1760425505693,-508.70442161,0.00019178,2]
[391237631,1760425505781,-246.57378405,0.00019178,2]
[391237632,1760425505869,-500.99324795,0.00019178,2]
[391237633,1760425505956,-500.0,0.00019178,2]
[391237634,1760425506047,-500.0,0.00019178,2]
[391237635,1760425506136,-500.0,0.00019178,2]
[391237636,1760425506211,-55.22398955,0.00019178,2]
[391237637,1760425507043,-377.01911368,0.00019178,2]
[391237638,1760425507145,-500.0,0.00019178,2]
[391237639,1760425507232,-500.0,0.00019178,2]
[391237640,1760425507315,-627.4177798,0.00019178,2]
[391237641,1760425507401,-500.0,0.00019178,2]
[391237642,1760425507480,-500.0,0.00019178,2]
[391237643,1760425507566,-241.28068018,0.00019178,2]
[391237644,1760425507658,-500.0,0.00019178,2]
[391237645,1760425507748,-500.0,0.00019178,2]
[391237646,1760425507836,-502.94172839,0.00019178,2]
[391237647,1760425508094,502.6913959,0.00019177,2]
[391237648,1760425509532,-697.3086041,0.00019177,2]
[391237649,1760425532119,200.0,0.00019178,2]
[391237650,1760425533534,526.6,0.00019178,2]
[391237651,1760425533782,526.6,0.00019178,2]
[391237652,1760425534026,526.6,0.00019178,2]
[391237653,1760425534309,526.6,0.00019178,2]
[391237654,1760425534570,526.6,0.00019178,2]
[391237655,1760425534825,526.6,0.00019178,2]
[391237656,1760425535163,526.6,0.00019178,2]
[391237657,1760425535533,526.6,0.00019178,2]
[391237658,1760425535642,526.6,0.00019178,2]
[391237659,1760425535879,526.6,0.00019178,2]
[391237660,1760425536131,526.6,0.00019178,2]
[391237661,1760425536425,526.6,0.00019178,2]
[391237662,1760425536669,526.6,0.00019178,2]
[391237663,1760425536950,526.6,0.00019178,2]
[391237664,1760425537214,526.6,0.00019178,2]
[391237665,1760425537459,526.6,0.00019178,2]
[391237666,1760425537743,526.6,0.00019178,2]
[391237667,1760425537991,526.6,0.00019178,2]
[391237668,1760425538239,526.6,0.00019178,2]
[391237669,1760425538475,526.6,0.00019178,2]
[391237670,1760425538968,526.6,0.00019178,2]
[391237671,1760425539248,526.6,0.00019178,2]
[391237672,1760425539529,526.6,0.00019178,2]
[391237673,1760425539788,526.81066228,0.00019178,2]
[391237674,1760425544243,1047.59933772,0.00019004,2]
[391237675,1760425544318,10000.01,0.00019004,2]
[391237676,1760425544392,10000.01,0.00019004,2]
[391237677,1760425544467,10000.01,0.00019004,2]
[391237678,1760425544540,10000.01,0.00019004,2]
[391237679,1760425544613,10000.01,0.00019004,2]
[391237680,1760425544684,10000.01,0.00019004,2]
[391237681,1760425544756,10000.01,0.00019004,2]
[391237682,1760425544831,10000.01,0.00019004,2]
[391237683,1760425544916,10000.01,0.00019004,2]
[391237684,1760425563763,-247.65,0.00018994,3]
[391237685,1760425563871,-300.0,0.00019003,2]
[391237686,1760425567635,-5018.51,0.00019004,2]
[391237687,1760425567843,-10000.01,0.00019004,2]
[391237688,1760425568105,-10000.01,0.00019004,2]
[391237689,1760425568364,-10000.01,0.00019004,2]
[391237690,1760425568632,-10000.01,0.00019004,2]
[391237691,1760425568873,-10000.01,0.00019004,2]
[391237692,1760425569147,-10000.01,0.00019004,2]
[391237693,1760425569371,-10000.01,0.00019004,2]
[391237694,1760425569752,-10000.01,0.00019004,2]
[391237695,1760425571672,-10000.01,0.00019004,2]
[391237696,1760425598966,-5000.0,0.00018626,2]
[391237697,1760425599137,-0.01,0.00018814,2]
[391237698,1760425599318,-831.19097823,0.00018814,2]